bitfinex-derivatives/quotes_ETHF0:USTF0_20241008
["timestamp","ask_amount","ask_price","bid_price","bid_amount"]
[1728379874366,4.6978,2429.6,2429.5,0.41165]
[1728379875873,5.093,2429.6,2429.5,0.41165]
[1728379877970,0.3952,2429.6,2429.5,0.41165]
[1728379878671,3.603,2429.6,2429.5,0.41165]
[1728379879973,0.45923929,2429.6,2429.5,0.41165]
[1728379880172,0.45923953,2429.6,2429.5,0.41165]
[1728379881663,0.45923953,2429.6,2429.5,0.20124909]
[1728379882271,0.3952,2429.6,2429.5,0.20124909]
[1728379882466,3.2078,2429.7,2429.3,0.8289]
[1728379882769,3.2078,2429.7,2429.6,0.41165]
[1728379882770,0.4092,2429.7,2429.6,0.41165]
[1728379883071,3.617,2429.7,2429.6,0.41165]
[1728379884570,5.107,2429.7,2429.3,0.8289]
[1728379884873,1.49,2429.4,2429.3,1.2406]
[1728379885169,1.49,2429.4,2429.3,0.4117]
[1728379885674,2.3093,2429.4,2429.3,0.4117]
[1728379885876,0.8193,2429.4,2429.3,0.4117]
[1728379886870,0.8193,2429.4,2429.2,0.4117]
[1728379886871,5.5171,2429.4,2429.2,0.4117]
[1728379887180,0.4117,2429.3,2429.2,0.4117]
[1728379887381,5.92879,2429.4,2429.2,0.4117]
[1728379887577,5.5171,2429.4,2428.9,1.02927251]
[1728379887776,3.2078,2429.1,2429.0,0.41174]
[1728379888084,1.49,2429.0,2428.9,1.44103251]
[1728379888378,2.3114,2429.0,2428.9,1.44103251]
[1728379890672,1.9052,2429.0,2428.9,1.44103251]
[1728379890881,0.4152,2429.0,2428.9,1.44103251]
[1728379891179,5.1188,2429.2,2429.1,0.41173]
[1728379893585,9.2356,2429.2,2429.1,0.41173]
[1728379893882,9.2356,2429.2,2428.9,1.02927251]
[1728379894180,5.53051,2429.2,2429.0,0.41174]
[1728379894375,1.49,2429.1,2428.9,1.02927251]
[1728379894582,0.4196,2429.0,2428.9,1.02927251]
[1728379894882,0.4196,2429.0,2428.9,1.44103251]
[1728379897080,5.53052,2429.2,2429.1,0.41173]
[1728379897279,5.1188,2429.2,2428.9,1.02927251]
[1728379897481,5.53052,2429.2,2429.1,0.41173]
[1728379897681,5.53051,2429.2,2429.1,0.41173]
[1728379897881,9.64731,2429.2,2429.0,0.41173]
[1728379898073,5.53052,2429.2,2429.0,0.41173]
[1728379898274,1.90174,2429.1,2428.9,1.44102251]
[1728379898480,1.90174,2429.1,2429.0,0.41175]
[1728379898682,1.49,2429.1,2429.0,0.41175]
[1728379899183,1.49,2429.1,2428.9,1.02927251]
[1728379899380,1.49,2429.1,2429.0,0.41175]
[1728379900180,1.49,2429.1,2428.9,1.02927251]
[1728379900485,1.49,2429.1,2429.0,0.41175]
[1728379902690,3.2078,2429.2,2429.1,0.41173]
[1728379902884,3.2078,2429.2,2429.1,1.19383]
[1728379903090,0.4163,2429.3,2429.1,0.7821]
[1728379903289,0.4163,2429.3,2429.2,0.41171]
[1728379903591,0.4163,2429.3,2429.2,0.81561]
[1728379903891,3.6241,2429.3,2429.2,0.81561]
[1728379904093,0.4163,2429.3,2429.2,0.81561]
[1728379904287,3.6241,2429.3,2429.2,0.81561]
[1728379906394,4.0358,2429.3,2429.2,0.81561]
[1728379906598,4.0358,2429.3,2429.2,0.41171]
[1728379906890,4.0358,2429.3,2428.9,2.05869251]
[1728379906891,0.41175,2429.0,2428.9,1.02927251]
[1728379907195,4.6978,2429.0,2428.9,1.44104251]
[1728379909293,1.49,2429.0,2428.9,1.44104251]
[1728379909493,0.8155,2429.1,2429.0,0.41175]
[1728379909692,1.8839,2429.1,2429.0,0.41175]
[1728379909889,1.8839,2429.1,2429.0,0.81035]
[1728379910993,3.2078,2429.3,2429.2,0.41171]
[1728379912697,4.6978,2429.3,2429.2,0.41171]
[1728379914096,1.49,2429.3,2429.2,0.41171]
[1728379917901,6.01851,2429.3,2429.1,0.41173]
[1728379918201,1.49,2429.2,2429.1,0.41173]
[1728379920201,1.90171,2429.2,2428.9,1.02927251]
[1728379920397,1.49,2429.0,2428.9,1.44104251]
[1728379924503,4.4084,2429.1,2429.0,0.41175]
[1728379924504,3.2078,2429.1,2429.0,0.41175]
[1728379925001,4.6978,2429.1,2429.0,4.52855]
[1728379925189,1.49,2429.1,2429.0,4.52855]
[1728379925393,1.49,2429.1,2428.9,1.02927251]
[1728379925602,1.49,2429.1,2429.0,0.41175]
[1728379925998,1.49,2429.1,2429.0,4.52855]
[1728379927104,1.49,2429.1,2429.0,0.41175]
[1728379927303,1.49,2429.1,2429.0,4.52855]
[1728379930306,3.6146,2429.4,2429.3,0.4117]
[1728379930307,5.1046,2429.4,2429.3,0.4117]
[1728379931904,4.6978,2429.4,2429.3,0.4117]
[1728379932108,3.2078,2429.4,2429.3,4.5277]
[1728379932410,1.49,2429.6,2429.5,0.41166]
[1728379932602,1.49,2429.6,2429.5,0.82216]
[1728379941215,1.49,2429.6,2429.5,0.41166]
[1728379950319,0.4254,2429.8,2429.7,0.41163]
[1728379950515,1.9154,2429.8,2429.7,0.41163]
[1728379951323,1.9154,2429.8,2429.7,0.83183]
[1728379952417,1.9154,2429.8,2429.7,0.41163]
[1728379954121,2.32701,2429.8,2429.7,0.41163]
[1728379954323,1.9154,2429.8,2429.7,0.41163]
[1728379954918,0.4254,2429.8,2429.7,0.41163]
[1728379959022,0.4087,2429.9,2429.8,0.41161]
[1728379960031,0.4087,2429.9,2429.8,0.83591]
[1728379960628,1.49,2430.0,2429.8,0.4243]
[1728379960832,1.49,2430.0,2429.9,0.4116]
[1728379963127,0.096,2430.3,2430.1,0.41156]
[1728379963335,1.49,2430.3,2430.2,0.41155]
[1728379963835,1.49,2430.3,2430.2,4.52675]
[1728379964426,1.49,2430.3,2430.2,0.41155]
[1728379964629,1.49,2430.3,2430.2,4.52675]
[1728379964827,1.49,2430.3,2430.2,0.41155]
[1728379965229,0.819,2430.4,2430.1,1.1782]
[1728379965427,1.49,2430.2,2429.9,1.02899]
[1728379965628,1.49,2430.0,2429.8,2.19779126]
[1728379965829,1.49,2430.0,2429.9,0.4116]
[1728379966024,1.49,2430.0,2429.9,4.5268]
[1728379967140,1.9166,2430.1,2430.0,0.41158]
[1728379974232,1.49,2430.3,2430.2,0.41155]
[1728379974427,1.879,2430.3,2430.2,0.41155]
[1728379983839,0.4076,2430.4,2430.1,0.41]
[1728379984041,0.65564879,2430.5,2430.4,0.41151]
[1728379984042,0.3869,2430.5,2430.4,0.41151]
[1728379984436,1.8951,2430.7,2430.2,1.84736]
[1728379984643,2.282,2430.7,2430.6,0.41148]
[1728379986839,5.4898,2430.7,2430.2,0.8185]
[1728379987038,1.49,2430.3,2430.2,0.82315]
[1728379987533,1.49,2430.3,2430.2,4.93835]
[1728379989443,2.31374,2430.3,2430.2,0.41155]
[1728379989841,0.41155,2430.2,2430.1,0.41155]
[1728379990244,1.90155,2430.2,2430.1,0.41155]
[1728379991938,1.49,2430.2,2430.1,0.41155]
[1728379992140,1.9022,2430.3,2429.9,0.393]
[1728379992347,1.9022,2430.3,2430.2,0.41155]
[1728379993036,0.4122,2430.3,2430.2,0.41155]
[1728379993236,0.8198,2430.4,2430.3,0.41153]
[1728379994448,1.23131,2430.4,2430.3,0.41153]
[1728379994747,0.8198,2430.4,2430.3,0.41153]
[1728379995135,0.3942,2430.4,2430.3,0.41153]
[1728379995342,1.49,2430.5,2430.4,0.41151]
[1728379995538,1.49,2430.5,2430.3,0.41153]
[1728379995748,1.49,2430.5,2430.4,0.41151]
[1728379996044,1.49,2430.5,2430.4,0.82091]
[1728379996254,1.49,2430.5,2430.4,1.21171]
[1728380003357,0.8128,2430.6,2430.5,0.41149]
[1728380004358,4.6978,2430.7,2430.6,0.41148]
[1728380009361,3.2078,2430.7,2430.6,0.41148]
[1728380009755,1.203,2430.9,2430.6,0.41148]
[1728380009961,1.203,2430.9,2430.8,0.41144]
[1728380010459,1.203,2430.9,2430.7,0.38495532]
[1728380010666,1.203,2430.9,2430.8,0.41144]
[1728380011067,5.9008,2430.9,2430.4,0.3908]
[1728380011362,1.49,2430.8,2430.4,1.41957]
[1728380011560,1.49,2430.8,2430.7,0.41146]
[1728380014670,0.41147,2430.7,2430.5,0.41148]
[1728380014976,4.6978,2430.6,2430.5,0.41148]
[1728380015658,14.8122,2430.6,2430.1,0.096]
[1728380015858,3.61935,2430.2,2429.7,0.096]
[1728380016066,1.2167,2430.1,2430.0,0.41157]
[1728380016373,2.7067,2430.1,2430.0,0.41157]
[1728380017671,3.11826,2430.1,2430.0,0.41157]
[1728380018264,3.11826,2430.1,2429.6,2.51911]
[1728380018568,2.7067,2430.1,2429.9,0.4116]
[1728380018871,3.11828,2430.1,2429.9,0.4116]
[1728380019067,4.1152,2430.0,2429.3,0.096]
[1728380019272,4.6978,2429.9,2429.3,0.096]
[1728380019590,9.2246,2429.9,2429.6,0.41164]
[1728380020564,9.2246,2429.9,2429.3,0.096]
[1728380020767,9.2246,2429.9,2429.6,0.41163]
[1728380021158,9.2246,2429.9,2429.7,0.41162]
[1728380021559,9.2246,2429.9,2429.3,0.096]
[1728380021966,15.2246,2429.9,2429.4,0.41168]
[1728380022270,15.2246,2429.9,2429.3,0.096]
[1728380022271,0.41166,2429.6,2429.3,0.096]
[1728380022461,0.8018,2429.5,2429.4,0.41167]
[1728380022764,0.8018,2429.5,2429.2,0.8063]
[1728380022971,0.8018,2429.5,2429.4,0.41168]
[1728380024579,0.8018,2429.5,2429.2,0.3927]
[1728380024773,1.21347,2429.5,2429.3,0.41169]
[1728380025071,1.21347,2429.5,2429.2,0.3927]
[1728380025267,3.2078,2429.3,2429.2,0.4117]
[1728380026074,3.21,2429.4,2429.0,0.4215]
[1728380026281,0.8018,2429.5,2429.4,0.41168]
[1728380026773,3.2078,2429.6,2429.1,1.43392]
[1728380026975,3.2078,2429.6,2429.5,0.41166]
[1728380028376,6.4178,2429.6,2429.5,0.41166]
[1728380028769,6.4178,2429.6,2429.3,0.4098]
[1728380028974,3.21,2429.4,2429.3,0.41169]
[1728380029482,4.0505,2429.4,2429.3,0.41169]
[1728380029877,4.46218,2429.4,2429.3,0.41169]
[1728380030077,4.0505,2429.4,2429.3,0.41169]
[1728380031280,4.0505,2429.4,2429.2,0.4117]
[1728380031281,4.46219,2429.4,2429.2,0.4117]
[1728380031482,3.2078,2429.3,2429.2,0.41171]
[1728380032183,3.2078,2429.3,2429.1,0.80742]
[1728380032184,3.61951,2429.3,2429.1,0.80742]
[1728380032372,3.61951,2429.3,2429.2,0.41171]
[1728380032783,3.2078,2429.3,2429.1,0.80742]
[1728380032989,0.41171,2429.2,2429.1,0.80742]
[1728380033978,3.6195,2429.3,2429.2,0.41171]
[1728380034477,3.6195,2429.3,2429.1,0.80742]
[1728380034684,0.41171,2429.2,2429.1,0.80742]
[1728380034878,3.61951,2429.3,2429.1,0.80742]
[1728380035479,3.2078,2429.3,2429.1,0.3957]
[1728380035675,3.62171,2429.2,2429.1,0.80743]
[1728380035878,3.21,2429.2,2429.1,0.80743]
[1728380039290,3.2078,2429.3,2429.2,0.41171]
[1728380039489,3.2078,2429.3,2429.2,0.80481]
[1728380040487,3.3038,2429.7,2429.6,0.41165]
[1728380040698,3.2078,2429.7,2429.6,0.41165]
[1728380042403,4.6878,2429.7,2429.6,0.41165]
[1728380042806,8.8038,2429.7,2429.2,0.8061]
[1728380043008,0.3997,2429.6,2429.5,0.41166]
[1728380043208,1.8797,2429.6,2429.5,0.41166]
[1728380044308,3.2078,2429.7,2429.6,0.41165]
[1728380044503,4.6878,2429.7,2429.6,0.41165]
[1728380044706,8.8038,2429.7,2429.6,0.41165]
[1728380045012,4.6878,2429.7,2429.6,0.41165]
[1728380045504,8.8038,2429.7,2429.6,0.41165]
[1728380045997,8.8038,2429.7,2429.2,0.3931]
[1728380046203,4.6878,2429.4,2429.3,0.4117]
[1728380047095,5.0767,2429.4,2429.3,0.4117]
[1728380048202,0.41171,2429.3,2429.2,0.41171]
[1728380048505,3.21,2429.3,2429.2,0.41171]
[1728380049602,3.6217,2429.3,2429.2,0.41171]
[1728380050304,3.6217,2429.3,2429.1,0.3957]
[1728380050511,3.6217,2429.3,2429.1,0.80742]
[1728380050907,3.6217,2429.3,2429.2,0.41171]
[1728380051103,3.21,2429.3,2429.2,0.41171]
[1728380051304,6.8067,2429.4,2429.3,0.4117]
[1728380051498,3.5967,2429.4,2429.3,0.4117]
[1728380051698,7.7127,2429.4,2429.3,0.4117]
[1728380052009,3.5967,2429.4,2429.3,0.4117]
[1728380058016,0.3889,2429.4,2429.3,0.4117]
[1728380058217,3.5967,2429.4,2429.3,0.4117]
[1728380059907,0.3889,2429.4,2429.3,0.4117]
[1728380063316,0.096,2429.7,2429.2,1.02929]
[1728380063617,6.4178,2429.8,2429.7,0.41163]
[1728380064017,10.5338,2429.8,2429.7,0.41163]
[1728380064409,10.5338,2429.8,2429.6,0.41164]
[1728380064611,10.5338,2429.8,2429.5,0.81645]
[1728380064612,3.21,2429.7,2429.5,0.81645]
[1728380064821,3.97164,2429.7,2429.5,0.4048]
[1728380065023,3.97164,2429.7,2429.6,0.41165]
[1728380065322,3.97164,2429.7,2429.5,0.4048]
[1728380065624,3.97164,2429.7,2429.5,0.81645]
[1728380065819,3.62164,2429.7,2429.5,0.81645]
[1728380066014,3.62164,2429.7,2429.6,0.41165]
[1728380066511,3.62164,2429.7,2429.5,0.81645]
[1728380068116,3.21,2429.7,2429.6,0.41165]
[1728380068516,1.48,2429.7,2429.6,0.41165]
[1728380070519,1.89164,2429.7,2429.6,0.41165]
[1728380070911,1.48,2429.7,2429.6,0.41165]
[1728380074727,1.48,2429.7,2429.5,0.4048]
[1728380074728,1.89163,2429.7,2429.5,0.4048]
[1728380075025,0.41165,2429.6,2429.4,0.41167]
[1728380075213,5.0956,2429.5,2429.4,0.41167]
[1728380075414,5.4881,2429.5,2429.4,0.41167]
[1728380077119,5.4881,2429.5,2429.1,0.8427]
[1728380077312,1.48,2429.3,2429.2,0.41171]
[1728380084928,5.89977,2429.5,2429.1,0.8427]
[1728380085133,5.89977,2429.5,2429.4,0.41168]
[1728380086032,5.4881,2429.5,2429.4,0.41168]
[1728380087927,5.4881,2429.5,2429.1,0.8427]
[1728380088133,5.89978,2429.5,2429.4,0.41168]
[1728380089127,5.89978,2429.5,2429.1,0.8427]
[1728380089128,5.4881,2429.5,2429.1,0.8427]
[1728380089331,3.2078,2429.2,2429.1,0.82833]
[1728380090938,1.48,2429.3,2429.2,0.41171]
[1728380091842,1.8917,2429.3,2429.2,0.41171]
[1728380092137,1.48,2429.3,2429.2,0.41171]
[1728380092346,1.8917,2429.3,2429.2,0.41171]
[1728380092843,1.48,2429.3,2429.2,0.41171]
[1728380100149,0.41171,2429.2,2429.1,0.82831]
[1728380100351,1.48,2429.3,2429.1,0.4166]
[1728380100549,1.48,2429.3,2429.2,0.41171]
[1728380100751,1.8917,2429.3,2429.2,0.41171]
[1728380101249,0.41171,2429.2,2429.1,0.4166]
[1728380101441,0.41171,2429.2,2429.1,0.41173]
[1728380101442,3.2078,2429.2,2429.1,0.41173]
[1728380101644,0.35,2429.4,2429.3,0.4117]
[1728380101848,1.48,2429.4,2429.3,0.4117]
[1728380102647,1.89168,2429.4,2429.3,0.4117]
[1728380103553,6.00769,2429.4,2429.2,0.4117]
[1728380103751,0.41172,2429.2,2429.1,0.41172]
[1728380104046,4.6878,2429.2,2429.1,0.41172]
[1728380106155,5.09951,2429.2,2429.1,0.41172]
[1728380106455,4.6878,2429.2,2429.1,0.41172]
[1728380109362,1.48,2429.2,2429.1,0.41172]
[1728380109664,4.6878,2429.2,2429.1,0.41172]
[1728380110460,1.48,2429.2,2429.1,0.41172]
[1728380110766,4.6878,2429.2,2429.1,0.41172]
[1728380111060,5.09951,2429.2,2429.1,0.41172]
[1728380111264,4.6878,2429.2,2429.1,0.41172]
[1728380113262,5.09951,2429.2,2429.1,0.41172]
[1728380113462,4.6878,2429.2,2429.1,0.41172]
[1728380115457,1.48,2429.2,2429.1,0.41172]
[1728380116065,4.6878,2429.2,2429.1,0.41172]
[1728380117269,5.09951,2429.2,2429.1,0.41172]
[1728380117461,4.6878,2429.2,2429.1,0.41172]
[1728380118868,4.6878,2429.2,2429.0,0.3935]
[1728380119071,0.41175,2429.0,2428.9,0.82704961]
[1728380119269,1.48,2429.0,2428.6,0.3858]
[1728380119470,0.41184,2428.5,2428.3,0.41187]
[1728380119668,0.41184,2428.5,2428.2,0.397]
[1728380119669,2.2651,2428.4,2428.2,0.397]
[1728380119864,2.2651,2428.4,2428.3,0.41187]
[1728380120973,2.2651,2428.4,2428.2,0.397]
[1728380120974,2.2651,2428.4,2428.2,0.80887]
[1728380121174,2.2651,2428.4,2428.2,0.397]
[1728380121376,2.67696,2428.4,2428.2,0.80888]
[1728380121763,2.67696,2428.4,2428.2,0.397]
[1728380122475,0.41187,2428.3,2428.2,0.397]
[1728380122673,2.67696,2428.4,2428.2,0.397]
[1728380122971,2.67696,2428.4,2428.2,0.80888]
[1728380123577,2.92635814,2428.4,2428.2,0.80888]
[1728380123777,0.41187,2428.3,2428.2,0.397]
[1728380123971,2.92635814,2428.4,2428.2,0.80888]
[1728380124168,2.51449814,2428.4,2428.2,0.397]
[1728380124375,2.51449814,2428.4,2427.9,1.42679644]
[1728380124376,0.4119,2428.2,2427.9,1.02969644]
[1728380124575,4.6878,2428.1,2427.9,1.02969644]
[1728380124776,0.4198,2428.0,2427.9,1.44163644]
[1728380125179,0.4198,2428.0,2427.9,1.02969644]
[1728380125375,0.8231,2428.0,2427.9,1.44163644]
[1728380127486,0.8231,2428.0,2427.9,1.02969644]
[1728380127682,0.8231,2428.0,2427.9,1.44163644]
[1728380127879,0.8231,2428.0,2427.9,1.02969644]
[1728380128981,0.8231,2428.0,2427.9,1.44163644]
[1728380129870,0.8231,2428.0,2427.9,1.02969644]
[1728380131180,1.23502,2428.0,2427.9,1.02969644]
[1728380131478,0.8231,2428.0,2427.9,1.02969644]
[1728380132081,1.23502,2428.0,2427.9,1.02969644]
[1728380132280,1.23502,2428.0,2427.9,0.92480893]
[1728380132583,5.35342,2428.0,2427.9,0.41455518]
[1728380133284,6.83342,2428.0,2427.9,0.41455518]
[1728380135286,12.83342,2428.0,2427.9,0.20609]
[1728380135482,12.83342,2428.0,2427.4,0.41201]
[1728380135483,0.412,2427.6,2427.4,0.41201]
[1728380135688,0.41202,2427.4,2427.3,0.4106]
[1728380135883,5.4859,2427.5,2427.4,0.41202]
[1728380135884,3.2078,2427.5,2427.4,0.41202]
[1728380136187,4.0453,2427.5,2427.4,0.83742]
[1728380136387,4.0453,2427.5,2427.4,5.38482]
[1728380138288,4.6318,2428.0,2427.4,10.9728]
[1728380138483,4.5358,2428.0,2427.9,0.41194]
[1728380138985,3.2078,2428.0,2427.9,0.41194]
[1728380139385,1.57131354,2428.1,2428.0,0.41192]
[1728380139684,1.48,2428.1,2428.0,0.41192]
[1728380143691,1.48,2428.1,2427.9,0.3867]
[1728380143877,1.48,2428.1,2427.9,0.79862]
[1728380143878,1.2073,2428.0,2427.9,0.79862]
[1728380144079,1.48,2428.1,2428.0,0.41192]
[1728380148592,3.2078,2428.2,2428.1,0.4119]
[1728380148890,4.6878,2428.2,2428.1,0.4119]
[1728380152194,5.09968,2428.2,2428.1,0.4119]
[1728380153294,4.6878,2428.2,2428.1,0.4119]
[1728380153695,5.1157,2428.2,2428.1,0.4119]
[1728380160300,4.6878,2428.2,2428.1,0.4119]
[1728380161506,1.48,2428.2,2428.1,0.4119]
[1728380161798,3.3038,2428.5,2428.4,0.41185]
[1728380161993,4.6878,2428.5,2428.4,0.41185]
[1728380169006,5.0915,2428.5,2428.4,0.41185]
[1728380170402,0.4201,2428.7,2428.4,4.1176]
[1728380170703,0.4201,2428.7,2428.6,0.41182]
[1728380170905,1.9001,2428.7,2428.6,0.41182]
[1728380173011,1.48,2428.7,2428.6,0.80712]
[1728380173606,0.8102,2428.8,2428.6,0.80712]
[1728380173607,0.8102,2428.8,2428.6,0.3953]
[1728380173908,0.8102,2428.8,2428.7,0.4118]
[1728380173909,0.404,2428.8,2428.7,0.4118]
[1728380175906,1.884,2428.8,2428.7,0.4118]
[1728380176308,3.2078,2428.9,2428.6,0.3953]
[1728380176514,3.5964,2428.9,2428.8,0.41178]
[1728380178516,5.0764,2428.9,2428.8,0.41178]
[1728380182910,3.2078,2428.9,2428.8,0.41178]
[1728380183511,4.6878,2428.9,2428.8,0.41178]
[1728380183811,1.48,2428.9,2428.8,0.41178]
[1728380184018,4.6878,2428.9,2428.8,0.41178]
[1728380184215,4.6878,2428.9,2428.6,0.3953]
[1728380184410,4.6878,2428.9,2428.5,0.7948]
[1728380184411,0.785,2428.8,2428.7,0.41179]
[1728380184808,1.19678,2428.8,2428.7,0.41179]
[1728380185422,2.67678,2428.8,2428.7,0.41179]
[1728380186122,2.265,2428.8,2428.7,0.41179]
[1728380188017,2.67678,2428.8,2428.7,0.41179]
[1728380188811,0.41181,2428.7,2428.6,0.41181]
[1728380189117,2.29901,2428.7,2428.6,0.41181]
[1728380189515,1.8872,2428.7,2428.6,0.41181]
[1728380190617,2.299,2428.7,2428.6,0.41181]
[1728380190824,1.8872,2428.7,2428.6,0.41181]
[1728380198535,1.8872,2428.7,2428.3,1.45215]
[1728380198536,0.41182,2428.6,2428.5,0.41182]
[1728380198726,5.09962,2428.6,2428.5,0.41182]
[1728380198926,4.6878,2428.6,2428.5,0.41182]
[1728380199126,4.6878,2428.6,2428.0,3.2078]
[1728380199430,3.2078,2428.3,2428.2,0.41187]
[1728380199846,4.0387,2428.3,2428.2,0.41187]
[1728380200537,5.5187,2428.3,2428.2,0.41187]
[1728380200733,5.5187,2428.3,2428.2,0.41188]
[1728380201143,5.93057,2428.3,2428.1,0.83499]
[1728380201347,5.93057,2428.3,2428.2,0.41188]
[1728380201641,5.93057,2428.3,2428.1,0.4231]
[1728380201842,5.5187,2428.3,2428.2,0.41188]
[1728380212445,5.9282,2428.3,2428.2,0.41188]
[1728380214143,6.34007,2428.3,2428.1,0.4231]
[1728380214351,0.41188,2428.2,2428.1,0.83499]
[1728380215447,0.41188,2428.2,2428.1,0.835]
[1728380215648,0.41188,2428.2,2428.1,0.4119]
[1728380217553,5.9282,2428.3,2428.1,0.4119]
[1728380217755,0.41188,2428.2,2428.1,0.4119]
[1728380218447,5.9282,2428.3,2428.1,0.4119]
[1728380218751,0.41188,2428.2,2428.1,0.4119]
[1728380218943,6.34008,2428.3,2428.1,0.4119]
[1728380219444,0.41188,2428.2,2428.1,0.4119]
[1728380219850,5.9282,2428.3,2428.1,0.4119]
[1728380220050,6.34008,2428.3,2428.1,0.4119]
[1728380220450,0.41188,2428.2,2428.1,0.4119]
[1728380220746,6.34008,2428.3,2428.1,0.4119]
[1728380220947,5.9282,2428.3,2428.1,0.4119]
[1728380221147,6.34008,2428.3,2428.1,0.41189]
[1728380221852,5.9282,2428.3,2428.1,0.41189]
[1728380222051,0.41188,2428.2,2428.1,0.41189]
[1728380222647,5.9282,2428.3,2427.9,0.836]
[1728380222847,1.48,2428.0,2427.9,1.24794]
[1728380224449,1.48,2428.1,2427.9,0.836]
[1728380224652,1.48,2428.2,2428.1,0.4119]
[1728380230755,1.48,2428.2,2428.1,4.5303]
[1728380231958,4.02523,2428.6,2428.2,1.02971]
[1728380232151,1.48,2428.4,2428.3,1.22757]
[1728380232851,3.6213,2428.9,2428.8,0.41178]
[1728380233049,5.1013,2428.9,2428.8,0.41178]
[1728380234468,5.51307,2428.9,2428.8,0.41178]
[1728380235156,5.16536776,2428.9,2428.8,0.41178]
[1728380235560,5.16536783,2428.9,2428.8,0.41178]
[1728380235757,5.57713818,2428.9,2428.7,0.41179]
[1728380235954,5.57713818,2428.9,2428.5,0.41183]
[1728380235955,0.41181,2428.7,2428.5,0.41183]
[1728380236151,0.41184,2428.5,2428.3,0.81546]
[1728380236357,1.48,2428.4,2428.3,0.41186]
[1728380236555,1.8751,2428.4,2428.3,0.41186]
[1728380237062,1.48,2428.4,2428.3,0.41186]
[1728380241860,1.89185,2428.4,2428.3,0.41186]
[1728380251873,0.41188,2428.3,2428.2,0.41188]
[1728380252074,0.41191,2428.1,2428.0,0.4119]
[1728380252280,1.89191,2428.1,2428.0,0.41192]
[1728380253285,0.41193,2428.0,2427.9,0.41193]
[1728380253576,0.41193,2428.0,2427.8,0.41195]
[1728380253577,5.51083,2428.0,2427.8,0.41195]
[1728380253782,1.8725,2427.9,2427.8,0.41195]
[1728380255075,0.4111,2428.0,2427.7,0.4273]
[1728380255382,0.4111,2428.0,2427.9,0.41194]
[1728380257480,3.6189,2428.0,2427.9,0.41194]
[1728380259676,0.4111,2428.0,2427.9,0.41194]
[1728380259875,3.6189,2428.0,2427.9,0.41194]
[1728380260582,4.03083,2428.0,2427.8,0.41194]
[1728380260785,1.48,2427.9,2427.8,0.41195]
[1728380261780,1.89194,2427.9,2427.6,0.3925]
[1728380261981,0.8339,2427.8,2427.7,0.41196]
[1728380262584,0.8339,2427.8,2427.6,0.3925]
[1728380262585,0.8339,2427.8,2427.6,0.80448]
[1728380262782,3.5979,2427.7,2427.6,0.41198]
[1728380262978,4.00988,2427.7,2427.5,0.412]
[1728380263179,1.48,2427.6,2427.5,0.412]
[1728380272587,1.89199,2427.6,2427.5,0.412]
[1728380275484,2.13901628,2427.6,2427.5,0.412]
[1728380275684,0.41202,2427.5,2427.3,0.41203]
[1728380275875,2.3204,2427.4,2427.3,0.41203]
[1728380276081,2.7145,2427.4,2427.3,0.41203]
[1728380276283,3.12652,2427.4,2427.3,0.41203]
[1728380276479,2.7145,2427.4,2427.2,0.3969]
[1728380276679,2.7145,2427.4,2427.3,0.41204]
[1728380277477,3.12652,2427.4,2427.2,0.80894]
[1728380277685,2.7145,2427.4,2427.3,0.41204]
[1728380278877,3.12652,2427.4,2427.3,0.41204]
[1728380280189,2.7145,2427.4,2427.3,0.41204]
[1728380280381,2.7145,2427.4,2427.2,0.3969]
[1728380280382,0.41199,2427.6,2427.2,0.3969]
[1728380280590,1.8787,2427.6,2427.3,0.79854]
[1728380280788,1.48,2427.6,2427.5,0.412]
[1728380280982,4.6878,2427.7,2427.6,0.41199]
[1728380284885,5.0735,2427.7,2427.6,0.41199]
[1728380286289,1.8657,2427.7,2427.6,0.41199]
[1728380286991,0.096,2428.0,2427.6,4.1192]
[1728380287197,1.48,2427.9,2427.8,0.41195]
[1728380298603,1.89194,2427.9,2427.8,0.41195]
[1728380298804,1.48,2427.9,2427.8,0.41195]
[1728380301717,1.89194,2427.9,2427.8,0.41195]
[1728380301903,2.29844,2427.9,2427.8,0.41195]
[1728380302210,1.8865,2427.9,2427.8,0.41195]
[1728380308205,2.29844,2427.9,2427.8,0.41195]
[1728380309112,1.8865,2427.9,2427.8,0.41195]
[1728380319817,3.2078,2428.1,2427.8,4.1192]
[1728380320117,1.48,2428.3,2427.9,1.43875]
[1728380320312,1.8981,2428.4,2428.0,1.0298]
[1728380320507,3.7187,2428.5,2428.0,1.4571]
[1728380320713,1.8949,2428.5,2428.4,0.41185]
[1728380320912,1.48,2428.5,2428.4,0.41185]
[1728380323017,4.5202,2428.8,2428.7,0.4118]
[1728380323215,5.9042,2428.8,2428.7,0.4118]
[1728380328708,2.6964,2428.8,2428.7,0.4118]
[1728380330317,3.2078,2428.9,2428.6,0.8215]
[1728380330615,3.2078,2428.9,2428.8,0.41178]
[1728380330817,4.6878,2428.9,2428.8,0.41178]
[1728380334622,1.48,2428.9,2428.8,0.41178]
[1728380340420,1.89177,2428.9,2428.8,0.41178]
[1728380340620,1.48,2428.9,2428.8,0.41178]
[1728380341329,1.48,2428.9,2428.6,0.41181]